bitfinex-derivatives/quotes_ETHF0:USTF0_20251107
["timestamp","ask_amount","ask_price","bid_price","bid_amount"]
[1762478890961,0.00451026,3324.6,3324.5,0.2345]
[1762478891759,0.00451026,3324.6,3324.5,8.2345]
[1762478892370,3.2078,3325.6,3324.5,8.2345]
[1762478892371,0.48741,3325.5,3325.3,0.48743]
[1762478892674,3.2078,3325.6,3325.4,0.48741]
[1762478893578,3.69519,3325.6,3325.4,0.48741]
[1762478894472,3.2078,3325.6,3325.4,0.48741]
[1762478895075,0.00451026,3325.8,3325.6,0.48739]
[1762478896971,0.00451026,3325.8,3325.7,0.2345]
[1762478897275,0.48746,3325.2,3325.0,3.69527]
[1762478897475,0.2492,3325.1,3325.0,3.2078]
[1762478897675,0.64056,3325.2,3325.1,0.48746]
[1762478897885,0.64056,3325.2,3325.0,3.2078]
[1762478898074,0.64056,3325.2,3325.0,3.69528]
[1762478898273,0.48746,3325.1,3325.0,3.2078]
[1762478898482,0.48748,3325.0,3324.5,3.2078]
[1762478898980,0.1531,3325.2,3325.1,0.48746]
[1762478899371,0.1531,3325.2,3324.6,0.2345]
[1762478899676,0.48751,3324.9,3324.7,0.48752]
[1762478899884,0.48758,3324.3,3324.2,0.00700568]
[1762478900080,3.2078,3324.9,3324.2,0.00700568]
[1762478900081,0.73678,3324.4,3324.2,0.00700568]
[1762478900278,0.73678,3324.4,3324.2,0.49459568]
[1762478900877,0.48756,3324.5,3324.4,0.48756]
[1762478901475,3.2078,3324.9,3324.2,0.00700568]
[1762478901680,0.48747,3325.1,3324.9,0.48748]
[1762478902078,0.48753,3324.7,3324.5,3.2078]
[1762478902577,0.48753,3324.7,3324.5,3.69535]
[1762478902780,0.88984,3324.6,3324.5,3.2078]
[1762478902981,0.1531,3324.6,3324.2,0.00700568]
[1762478903285,0.48758,3324.4,3324.3,0.48758]
[1762478904385,0.48758,3324.3,3324.2,0.00700568]
[1762478904885,0.73678,3324.3,3324.2,0.00700568]
[1762478905788,3.84845,3324.6,3324.2,0.00700568]
[1762478906091,0.48757,3324.5,3324.3,0.48758]
[1762478906280,3.3609,3324.6,3324.5,0.48755]
[1762478906482,0.1531,3324.6,3324.5,0.48755]
[1762478906883,3.2078,3325.0,3324.5,0.48755]
[1762478907389,0.48752,3324.7,3324.6,0.2345]
[1762478907890,3.2078,3325.0,3324.2,3.21480568]
[1762478908190,0.48751,3324.8,3324.2,3.21480568]
[1762478908491,3.2078,3325.0,3324.2,3.21480568]
[1762478908492,0.48753,3324.7,3324.6,0.48754]
[1762478909291,0.48756,3324.5,3324.2,3.21480568]
[1762478909684,0.48758,3324.4,3324.3,0.48758]
[1762478910388,0.48757,3324.4,3324.3,0.48757]
[1762478910588,0.48758,3324.3,3324.2,3.70239568]
[1762478911085,3.2078,3325.0,3324.5,0.48755]
[1762478911890,0.48758,3324.3,3324.2,3.93687568]
[1762478912086,0.48758,3324.3,3324.2,0.24150568]
[1762478912685,0.48758,3324.3,3324.2,0.00700568]
[1762478912986,0.73678,3324.3,3324.2,0.00700568]
[1762478913291,0.2492,3324.3,3324.2,0.00700568]
[1762478913491,3.3609,3324.5,3324.2,0.00700568]
[1762478913791,0.1531,3324.5,3324.2,0.00700568]
[1762478913985,0.73678,3324.3,3324.2,0.00700568]
[1762478915197,0.48758,3324.3,3324.2,0.00700568]
[1762478915591,0.48758,3324.3,3324.2,0.49459568]
[1762478916393,0.1531,3324.5,3324.2,0.00700568]
[1762478916596,0.48757,3324.4,3324.3,0.79508]
[1762478917095,0.48751,3324.8,3324.7,0.48751]
[1762478917292,3.2078,3324.9,3324.8,0.48751]
[1762478917493,0.48749,3324.9,3324.8,0.79501]
[1762478917695,0.1531,3325.2,3324.9,0.48748]
[1762478917883,0.4875,3324.9,3324.8,0.3075]
[1762478918089,0.48758,3324.4,3324.2,0.49459568]
[1762478918293,0.48755,3324.5,3324.2,0.00700568]
[1762478918497,0.48754,3324.7,3324.2,0.00700568]
[1762478918992,0.48755,3324.6,3324.2,0.00700568]
[1762478919195,3.2078,3325.0,3324.9,0.48749]
[1762478919794,3.2078,3325.0,3324.2,0.00700568]
[1762478920194,0.48754,3324.6,3324.2,2.15067595]
[1762478920398,0.48754,3324.6,3324.5,0.3235]
[1762478921497,0.1843,3324.5,3324.2,0.00700568]
[1762478921688,0.78398,3324.3,3324.2,0.00700568]
[1762478921995,3.2078,3324.6,3324.2,0.00700568]
[1762478922193,3.2078,3325.0,3324.8,0.4875]
[1762478922400,0.48749,3324.9,3324.8,0.4875]
[1762478923093,0.48753,3324.8,3324.7,0.48752]
[1762478923695,0.1531,3325.2,3324.8,0.48749]
[1762478923897,0.48753,3324.7,3324.6,0.48753]
[1762478924310,0.48751,3324.9,3324.8,0.4875]
[1762478925897,0.48752,3324.8,3324.7,0.48752]
[1762478926103,0.78249,3325.0,3324.9,0.48749]
[1762478926291,0.295,3325.0,3324.9,0.48749]
[1762478926500,0.1531,3325.2,3325.0,0.48747]
[1762478926702,0.48749,3324.9,3324.8,0.78551]
[1762478928204,0.48749,3324.9,3324.8,0.298]
[1762478928701,0.48749,3324.9,3324.8,0.78551]
[1762478929399,0.78252,3324.7,3324.6,2.63121027]
[1762478929597,0.78257,3324.4,3324.3,2.14367027]
[1762478929902,0.78258,3324.3,3324.2,0.00700568]
[1762478930798,0.295,3324.3,3324.2,0.49459568]
[1762478931100,0.48752,3324.8,3324.2,2.15067595]
[1762478931305,0.48752,3324.8,3324.7,0.48752]
[1762478931698,3.2078,3325.0,3324.6,0.48753]
[1762478931899,0.48752,3324.7,3324.6,0.48753]
[1762478932498,0.1531,3325.2,3324.9,0.48749]
[1762478932704,0.48751,3324.9,3324.8,0.4875]
[1762478934697,0.1531,3325.2,3324.5,2.14367027]
[1762478935004,0.48754,3324.7,3324.6,0.48754]
[1762478935603,0.1531,3325.2,3324.4,5.35147027]
[1762478935809,0.96485,3324.5,3324.4,3.2078]
[1762478936302,0.78258,3324.3,3324.2,0.00700568]
[1762478936499,3.99038,3324.3,3324.2,0.00700568]
[1762478936699,0.78268,3323.6,3323.5,2.14367027]
[1762478937011,0.1823,3323.5,3323.3,0.48772]
[1762478937306,0.48773,3323.3,3323.1,2.14367027]
[1762478937802,0.29743377,3323.3,3323.1,0.00371722]
[1762478938002,0.29743377,3323.3,3323.1,0.49146722]
[1762478938200,0.00243377,3323.3,3323.1,0.49146722]
[1762478938402,0.49016377,3323.3,3323.1,0.49146722]
[1762478939004,0.49016377,3323.3,3323.1,0.00371722]
[1762478939798,0.295,3323.2,3323.1,0.00371722]
[1762478940702,0.00243377,3323.3,3323.2,0.78574]
[1762478940911,0.00243377,3323.3,3323.2,3.99354]
[1762478941708,0.00243377,3323.3,3323.2,6.13721027]
[1762478942308,0.00243377,3323.3,3323.2,3.99354]
[1762478943113,3.2078,3324.1,3324.0,0.96162]
[1762478943312,0.48755,3324.5,3324.4,0.48757]
[1762478944011,0.49014383,3324.5,3324.4,0.48757]
[1762478944810,0.00259383,3324.5,3324.4,0.78557]
[1762478945809,0.48758,3324.4,3324.2,3.69539]
[1762478946009,0.00259383,3324.5,3324.4,0.48757]
[1762478946404,0.27589383,3324.5,3324.4,0.48757]
[1762478946610,0.2733,3324.3,3324.2,3.2078]
[1762478946825,0.48759,3324.3,3324.1,0.48761]
[1762478947521,0.66334383,3324.5,3324.3,0.48757]
[1762478947714,0.17579383,3324.5,3323.8,5.3623262]
[1762478947914,0.48764,3324.0,3323.9,0.48762]
[1762478948218,0.48762,3324.1,3323.8,3.2078]
[1762478948718,0.66083,3324.0,3323.8,3.2078]
[1762478948921,0.76095,3323.9,3323.5,2.1545262]
[1762478949115,0.76095,3323.9,3323.4,3.2078]
[1762478949725,0.76095,3323.9,3323.4,5.3623262]
[1762478950015,0.76095,3323.9,3323.8,0.48765]
[1762478950315,0.76095,3323.9,3323.4,5.3623262]
[1762478950910,0.2733,3323.9,3323.8,0.48765]
[1762478951219,0.48757,3324.4,3324.3,0.48758]
[1762478951408,3.38359383,3324.5,3323.8,3.2078]
[1762478951614,0.4876,3324.2,3323.8,3.2078]
[1762478951814,0.4876,3324.2,3324.1,0.48761]
[1762478952910,0.48761,3324.1,3323.8,3.2078]
[1762478953313,3.38359383,3324.5,3323.8,3.2078]
[1762478953513,0.48764,3323.9,3323.8,3.69545]
[1762478953715,0.2733,3324.1,3323.8,3.2078]
[1762478953919,0.93414,3324.0,3323.9,0.48764]
[1762478955320,3.87115383,3324.5,3324.3,0.48757]
[1762478955523,3.38359383,3324.5,3324.3,0.48757]
[1762478955915,3.21039383,3324.5,3324.4,0.48757]
[1762478957324,3.21039383,3324.5,3324.4,0.76097]
[1762478957524,3.69794383,3324.5,3324.4,0.76097]
[1762478957822,0.49014383,3324.5,3324.4,0.76097]
[1762478958223,0.00259383,3324.5,3324.4,0.76097]
[1762478961625,0.00259383,3324.5,3324.4,2.9154962]
[1762478962424,0.00259383,3324.5,3324.4,0.76097]
[1762478967431,0.00259383,3324.5,3324.4,2.9154962]
[1762478967632,0.2733,3324.3,3324.2,5.3623262]
[1762478967832,0.76088,3324.3,3324.2,3.2078]
[1762478968128,0.48759,3324.2,3324.1,2.6421162]
[1762478968331,0.17579383,3324.5,3324.1,2.1545262]
[1762478968630,0.76088,3324.4,3324.3,0.48757]
[1762478969732,0.48758,3324.3,3324.2,2.6421162]
[1762478969934,0.76088,3324.3,3324.2,2.6421162]
[1762478970132,0.76088,3324.3,3324.2,0.48759]
[1762478970537,0.2733,3324.1,3324.0,2.6421462]
[1762478970936,0.76091,3324.1,3324.0,2.6421462]
[1762478971131,0.76091,3324.1,3324.0,0.48762]
[1762478971633,0.93412,3324.0,3323.9,2.1545262]
[1762478972338,0.93412,3324.0,3323.8,3.2078]
[1762478972637,0.4465,3324.0,3323.9,0.48764]
[1762478972935,0.48764,3323.9,3323.8,3.4812]
[1762478973130,0.66083,3324.0,3323.9,0.48764]
[1762478973332,0.66083,3324.0,3323.9,2.64878604]
[1762478974031,0.76094,3323.9,3323.8,5.36894604]
[1762478974338,0.76094,3323.9,3323.8,3.2078]
[1762478975032,0.2733,3323.9,3323.7,2.16114604]
[1762478975237,0.1732,3324.0,3323.9,0.48764]
[1762478975436,0.66082,3324.0,3323.9,0.48764]
[1762478975637,0.48765,3323.9,3323.8,0.75125]
[1762478976136,0.74375,3323.9,3323.8,0.2636]
[1762478976337,0.74378,3323.6,3323.5,2.16114604]
[1762478976540,0.69234,3323.2,3323.1,7.22e-06]
[1762478976733,0.4879,3322.1,3321.7,3.2078]
[1762478976942,0.48795,3321.8,3321.7,3.4714]
[1762478977442,0.48795,3321.8,3321.6,9.347]
[1762478977644,0.48796,3321.7,3321.6,0.00328151]
[1762478977943,0.69256,3321.7,3321.6,0.00328151]
[1762478980244,0.2046,3321.7,3321.6,0.00328151]
[1762478980449,0.3257,3321.7,3321.6,0.00328151]
[1762478980947,0.49061697,3321.8,3321.6,0.80274151]
[1762478981255,3.69841697,3321.8,3321.6,0.00328151]
[1762478981741,0.00265697,3321.8,3321.6,0.00328151]
[1762478982145,0.00265697,3321.8,3321.7,0.3115]
[1762478985549,0.00265697,3321.8,3321.7,3.5193]
[1762478987550,0.00265697,3321.8,3321.7,0.3115]
[1762478989755,0.81366,3321.7,3321.6,0.00328151]
[1762478994263,0.48796,3321.7,3321.6,0.00328151]
[1762478994557,0.81366,3321.7,3321.6,0.00328151]
[1762478997249,0.48796,3321.7,3321.6,0.31478151]
[1762478997851,0.49060697,3321.8,3321.7,0.3115]
[1762478998255,0.49060697,3321.8,3321.6,0.00328151]
[1762478998256,0.48796,3321.7,3321.6,0.00328151]
[1762478998657,0.48796,3321.7,3321.6,0.80276151]
[1762478999157,0.00265697,3321.8,3321.7,0.79946]
[1762478999957,0.49060697,3321.8,3321.7,0.3115]
[1762479000356,0.81366,3321.7,3321.6,0.00328151]
[1762479001056,3.21045697,3321.8,3321.4,0.00451026]
[1762479001057,0.48799,3321.5,3321.4,0.00451026]
[1762479001556,0.81369,3321.5,3321.4,0.00451026]
[1762479001955,0.81369,3321.5,3321.4,0.00688212]
[1762479002460,0.00265697,3321.8,3321.7,0.79946]
[1762479002665,3.69840697,3321.8,3321.7,0.3115]
[1762479002864,3.21045697,3321.8,3321.6,0.48797]
[1762479003161,0.48796,3321.7,3321.5,0.68049]
[1762479003362,0.48798,3321.6,3321.5,0.1925]
[1762479003558,0.48799,3321.5,3321.4,0.00688212]
[1762479003865,0.81369,3321.5,3321.4,0.00688212]
[1762479005764,0.90329,3321.5,3321.4,0.00688212]
[1762479006062,0.48812,3320.6,3320.3,0.48816]
[1762479006262,3.69592,3320.6,3320.2,0.48818]
[1762479006462,3.69592,3320.6,3320.0,0.1673]
[1762479006856,3.69592,3320.6,3320.5,0.16968292]
[1762479007053,3.2078,3321.1,3320.6,0.48812]
[1762479007266,0.77764676,3321.0,3320.6,0.48812]
[1762479007465,0.48812,3320.6,3320.5,0.45668292]
[1762479007961,0.77062,3320.6,3320.5,0.00238292]
[1762479008162,0.77067,3320.3,3320.2,0.00303014]
[1762479008367,0.48834,3319.2,3319.1,0.287]
[1762479008666,0.48834,3319.2,3318.9,3.2078]
[1762479009067,3.69614,3319.2,3318.5,3.4001]
[1762479009260,0.48841,3318.7,3318.5,3.4001]
[1762479009462,0.2825,3318.6,3318.5,0.00314352]
[1762479010156,3.2078,3319.1,3318.6,0.1923]
[1762479010568,0.4884,3318.8,3318.6,0.1923]
[1762479010763,3.2078,3319.1,3318.6,0.1923]
[1762479010964,0.48839,3318.8,3318.6,0.1923]
[1762479011168,3.2078,3318.7,3318.6,0.1923]
[1762479011368,0.48842,3318.6,3318.5,0.00314352]
[1762479011567,0.77092,3318.6,3318.5,0.00314352]
[1762479011764,0.77294749,3318.6,3317.5,3.4001]
[1762479012070,3.2078,3318.6,3318.0,0.1923]
[1762479012267,0.09209377,3319.2,3317.5,3.4001]
[1762479012268,0.48852,3318.0,3317.5,3.88867]
[1762479012461,0.4885,3318.1,3317.6,0.48855]
[1762479012658,0.48854,3317.8,3317.6,0.00212591]
[1762479013470,0.2825,3317.7,3317.6,0.00212591]
[1762479015362,0.2825,3317.7,3317.6,2.591e-05]
[1762479017365,3.2078,3318.3,3318.0,0.1923]
[1762479017564,3.2078,3318.3,3318.2,0.287]
[1762479017865,3.2078,3318.3,3318.0,0.1923]
[1762479017866,3.2078,3318.8,3318.0,3.4001]
[1762479018075,0.00249377,3319.2,3319.1,0.287]
[1762479018462,0.00249377,3319.2,3318.6,0.1923]
[1762479018663,0.48835,3319.1,3318.8,0.48838]
[1762479018863,0.00249377,3319.2,3319.1,0.287]
[1762479020966,0.00249377,3319.2,3319.1,8.287]
[1762479022273,0.00249377,3319.2,3319.1,8.77534]
[1762479024979,3.2078,3320.1,3320.0,0.77521]
[1762479025385,0.48821,3320.0,3319.8,0.68053]
[1762479025873,3.2078,3320.1,3319.9,0.48822]
[1762479026075,3.2078,3320.1,3320.0,0.287]
[1762479026076,3.21149332,3320.1,3320.0,0.287]
[1762479026268,1.61065011,3321.8,3320.0,0.287]
[1762479026269,0.48802,3321.3,3321.1,0.48804]
[1762479026473,0.48802,3321.3,3321.0,0.1923]
[1762479026474,0.48804,3321.2,3321.0,0.1923]
[1762479026670,0.48804,3321.2,3321.0,0.68036]
[1762479026877,0.48804,3321.2,3321.0,0.1923]
[1762479027376,0.48812,3320.6,3320.4,0.1923]
[1762479027579,0.4882,3320.1,3319.9,0.00356522]
[1762479028082,0.2825,3320.0,3319.9,0.00356522]
[1762479028275,0.4882,3320.1,3319.9,0.00356522]
[1762479028477,0.2825,3320.0,3319.9,0.00356522]
[1762479029180,3.4903,3320.0,3319.9,0.00356522]
[1762479029378,0.2825,3319.8,3319.2,0.48833]
[1762479029568,3.2078,3319.4,3318.8,3.2078]
[1762479029773,3.69611,3319.4,3319.2,0.48833]
[1762479030074,0.48829,3319.5,3318.8,3.2078]
[1762479030273,3.2078,3319.8,3318.8,3.2078]
[1762479030474,0.48834,3319.2,3319.0,0.49286732]
[1762479031074,0.4883,3319.4,3319.2,0.48833]
[1762479031274,0.00451732,3319.6,3319.2,0.48833]
[1762479031777,0.00451732,3319.6,3319.1,0.48834]
[1762479031778,0.48832,3319.3,3319.1,0.48834]
[1762479032276,0.48834,3319.2,3319.0,0.00451732]
[1762479032681,0.2825,3319.1,3319.0,0.00451732]
[1762479032978,0.48834,3319.2,3319.0,0.00451732]
[1762479033182,0.48833,3319.2,3319.0,0.00451732]
[1762479033674,0.48831,3319.3,3319.2,0.48832]
[1762479033877,0.00451732,3319.6,3319.2,0.1923]
[1762479034073,0.00451732,3319.6,3319.5,0.287]
[1762479034283,0.49278732,3319.6,3319.5,0.48828]
[1762479034780,0.00451732,3319.6,3319.5,0.48828]
[1762479035677,0.48828,3319.5,3319.3,0.48831]
[1762479035879,0.00451732,3319.6,3319.5,0.48828]
[1762479036183,0.4883,3319.4,3319.3,0.4883]
[1762479036484,0.49278732,3319.6,3319.5,0.48828]
[1762479036683,0.49278732,3319.6,3319.5,0.77528]
[1762479036684,0.00451732,3319.6,3319.5,0.77528]
[1762479037083,0.49278732,3319.6,3319.5,0.77528]
[1762479037281,0.00451732,3319.6,3319.5,0.77528]
[1762479037485,0.49278732,3319.6,3319.5,0.77528]
[1762479037684,0.00451732,3319.6,3319.5,0.77528]
[1762479038089,0.00451732,3319.6,3319.5,0.93208]
[1762479039581,3.2078,3320.6,3320.4,0.48815]
[1762479039789,0.48812,3320.6,3320.5,0.90994]
[1762479039989,0.48812,3320.6,3320.5,0.1568]
[1762479040288,3.2078,3321.0,3320.2,0.48817]
[1762479040602,0.4882,3320.1,3320.0,0.1568]
[1762479040783,0.00451732,3320.9,3319.5,0.1568]
[1762479040784,0.48823,3319.9,3319.5,0.1568]
[1762479040994,0.48831,3319.3,3319.2,0.1923]
[1762479041188,0.48834,3319.1,3319.0,3.70067732]
[1762479041390,0.48834,3319.1,3319.0,3.21231732]
[1762479041791,0.71474,3319.1,3319.0,3.21231732]
[1762479042190,0.71474,3319.1,3319.0,0.00451732]
[1762479044193,0.2181,3318.2,3317.7,3.2078]
[1762479044497,0.48851,3318.0,3317.7,3.69634]
[1762479044795,3.2078,3318.5,3317.9,0.48852]
[1762479044996,3.2078,3318.5,3317.7,3.2078]
[1762479045190,0.00451732,3318.4,3318.3,0.265]
[1762479045593,0.00451732,3318.4,3318.2,0.48847]
[1762479045794,0.49296732,3318.4,3318.2,0.48847]
[1762479045995,0.48846,3318.3,3318.1,0.48848]
[1762479046296,0.00451732,3318.4,3318.1,0.48848]
[1762479046297,0.00451732,3318.4,3318.2,0.48847]
[1762479046487,0.00451732,3318.4,3318.1,3.2078]
[1762479046795,0.48846,3318.3,3318.1,3.69628]
[1762479047695,0.48849,3318.1,3318.0,0.1568]
[1762479047891,0.2181,3317.9,3317.8,0.00451732]
[1762479048097,3.4259,3317.9,3317.8,0.00451732]
[1762479048704,0.70213,3317.8,3317.7,0.00256972]
[1762479048898,0.70213,3317.8,3315.6,0.1568]
[1762479048899,0.4887,3316.7,3316.5,3.69652]
[1762479049095,0.4887,3316.7,3316.5,3.2078]
[1762479049801,0.48881,3315.9,3315.7,3.2078]
[1762479050099,0.00309328,3315.9,3315.7,3.70050441]
[1762479050293,0.49191328,3315.9,3315.7,3.21166441]
[1762479051099,0.49191328,3315.9,3315.7,3.70050441]
[1762479052099,0.00309328,3315.9,3315.7,3.21166441]
[1762479052304,0.49190328,3315.9,3315.7,3.21166441]
[1762479054403,0.00309328,3315.9,3315.8,0.265]
[1762479054704,0.00451732,3316.1,3316.0,0.265]
[1762479055706,0.00725553,3316.1,3316.0,0.265]
[1762479055898,0.48871,3316.6,3316.5,0.265]
[1762479056098,0.48875,3316.4,3316.2,3.3646]
[1762479056307,0.48875,3316.4,3316.2,0.1568]
[1762479056506,3.2078,3316.8,3316.2,3.3646]
[1762479056800,0.48874,3316.4,3316.2,0.1568]
[1762479057005,0.48874,3316.4,3316.2,0.16131732]
[1762479057204,0.48874,3316.4,3316.2,0.00451732]
[1762479057599,0.2141,3316.3,3316.2,0.00451732]
[1762479058902,3.4219,3316.3,3316.2,0.00451732]
[1762479059108,3.91065,3316.3,3316.2,0.00451732]
[1762479059298,0.69843,3315.8,3315.7,0.00386441]
[1762479059503,3.90623,3315.8,3315.7,0.00386441]
[1762479060903,0.08987394,3316.8,3315.7,0.00386441]
[1762479060904,3.2078,3316.3,3315.7,0.26886441]
[1762479061209,0.48883,3315.8,3315.7,0.26886441]
[1762479061506,0.48883,3315.8,3315.7,0.00386441]
[1762479061805,3.69661,3315.9,3315.7,0.00386441]
[1762479062607,0.48881,3315.9,3315.7,0.00386441]
[1762479063510,3.69661,3315.9,3315.7,0.00386441]
[1762479064411,3.69661,3315.9,3315.8,0.265]
[1762479065707,0.63123,3315.8,3315.7,0.00386441]
[1762479065910,0.63136,3314.9,3314.8,3.2078]
[1762479066204,3.2078,3315.2,3313.5,0.48915]
[1762479066407,3.2078,3315.2,3313.2,3.3586]
[1762479066408,0.48918,3313.4,3313.2,3.3586]
[1762479066604,0.48918,3313.4,3313.2,0.1508]
[1762479067005,0.49135823,3313.4,3313.2,0.15438781]
[1762479067611,0.49135823,3313.4,3313.2,0.00358781]
[1762479067812,0.49135823,3313.4,3311.2,40.8]
[1762479067813,0.48934,3312.3,3312.2,3.2078]
[1762479068011,3.2078,3313.0,3312.2,3.2078]
[1762479068311,0.00452434,3312.6,3312.5,0.2469]
[1762479068706,2.434e-05,3312.6,3312.5,8.2469]
[1762479069006,2.434e-05,3312.6,3312.5,8.24912887]
[1762479069613,0.00217823,3313.4,3313.2,0.1508]
[1762479070212,0.48927,3312.8,3312.6,0.1508]
[1762479070816,0.00452434,3313.0,3312.6,0.1508]
[1762479071112,3.20997823,3313.4,3312.6,0.1508]
[1762479071113,0.00217823,3313.4,3313.3,0.7361]
[1762479071312,3.2078,3314.6,3314.0,0.48908]
[1762479071512,3.2078,3314.6,3313.8,3.3586]
[1762479071513,3.69681,3314.6,3313.8,3.3586]
[1762479071715,3.2078,3314.6,3314.4,0.1508]
[1762479071916,0.48894,3315.1,3314.7,0.48898]
[1762479072112,0.48894,3315.1,3314.4,0.1508]
[1762479072113,0.48894,3315.1,3314.8,0.48897]
[1762479072414,0.48898,3314.8,3314.6,0.00452434]
[1762479073014,3.2078,3315.0,3314.6,0.00452434]
[1762479073319,0.00227003,3315.1,3314.6,0.00452434]
[1762479073523,0.48898,3314.8,3314.6,0.49352434]
[1762479073715,0.00227003,3315.1,3314.6,0.00452434]
[1762479073920,0.00227003,3315.1,3314.8,0.48897]
[1762479074217,0.00227003,3315.1,3314.6,3.21232434]
[1762479075010,0.48898,3314.8,3314.6,3.21232434]
[1762479075325,0.00227003,3315.1,3314.9,0.48895]
[1762479075618,0.00227003,3315.1,3315.0,0.1508]
[1762479075815,0.48894,3315.0,3314.9,0.00226799]
[1762479077424,0.48894,3315.0,3314.9,0.49122799]
[1762479077619,0.00227003,3315.1,3314.9,0.49122799]
[1762479077819,0.00227003,3315.1,3315.0,0.1508]
[1762479078316,0.00227003,3315.1,3314.9,0.00226799]
[1762479078317,0.63584,3315.0,3314.9,0.00226799]
[1762479078826,0.00227003,3315.1,3315.0,0.63974]
[1762479079016,0.00227003,3315.1,3315.0,0.3977]
[1762479079223,0.00227003,3315.1,3315.0,0.1508]
[1762479079420,0.63584,3315.0,3314.9,0.00226799]
[1762479079624,0.63589,3314.7,3314.6,0.00452434]
[1762479079824,0.1469,3314.7,3313.8,3.3586]
[1762479080121,0.63381,3313.9,3313.8,3.2078]
[1762479080327,0.48909,3314.0,3313.8,3.3586]
[1762479080714,0.48909,3314.0,3313.8,3.21116877]
[1762479080920,3.2078,3314.6,3313.8,3.36196877]
[1762479081121,0.48908,3314.1,3314.0,0.48909]
[1762479081525,0.63381,3313.9,3313.8,0.00336877]
[1762479082227,0.48911,3313.9,3313.8,0.00336877]
[1762479082529,0.48911,3313.9,3313.8,0.15416877]
[1762479082924,0.48911,3313.9,3313.8,0.40106877]
[1762479083627,3.2078,3314.2,3314.0,0.48908]
[1762479083826,0.48906,3314.2,3314.0,0.48908]
[1762479084531,0.48911,3313.9,3313.8,3.36196877]
[1762479084731,0.48911,3313.9,3313.8,0.15416877]
[1762479085231,0.48909,3314.0,3313.9,0.2469]
[1762479085940,0.48909,3314.0,3313.8,0.15416877]
[1762479086241,0.48911,3313.9,3313.8,0.15416877]
[1762479086434,0.4891,3314.0,3313.9,0.48909]
[1762479086635,0.48911,3313.9,3313.8,0.15416877]
[1762479087438,0.48911,3313.9,3313.8,0.64328877]
[1762479087641,0.48911,3313.9,3313.8,0.15416877]
[1762479087841,1.39971357,3313.9,3313.8,0.00336877]
[1762479088535,0.48911,3313.9,3313.8,0.25026877]
[1762479088738,0.48911,3313.9,3313.8,0.00336877]
[1762479088935,1.25547761,3313.9,3313.8,0.00336877]
[1762479089130,1.40017761,3313.9,3313.8,0.00336877]
[1762479089733,0.63043,3313.7,3313.6,0.00452434]
[1762479089932,1.39679761,3313.7,3313.6,0.00452434]
[1762479090646,1.39679761,3313.7,3313.6,0.00793661]
[1762479091143,0.48911,3314.0,3313.9,0.48911]
[1762479091344,1.25556468,3314.0,3313.9,0.48911]
[1762479091738,0.76645468,3314.0,3313.9,0.48911]
[1762479091938,0.48911,3313.9,3313.8,0.88682]
[1762479092444,0.1413,3314.2,3314.1,0.48907]
[1762479092640,0.76693743,3314.2,3314.1,0.73597]
[1762479092942,0.48909,3314.0,3313.9,0.73599]
[1762479094441,0.48911,3313.9,3313.8,0.63991]
[1762479094743,0.48911,3313.9,3313.8,0.88681]
[1762479095343,3.2078,3314.5,3313.8,0.1508]
[1762479095542,0.48905,3314.3,3314.2,0.2326]
[1762479095743,1.25765023,3314.3,3314.2,0.2326]
[1762479096245,0.48905,3314.3,3314.2,0.2326]
[1762479096445,0.48905,3314.3,3314.2,0.72166]
[1762479096841,3.2078,3314.5,3314.3,0.48904]
[1762479097043,3.69676,3314.9,3314.8,0.2326]
[1762479097346,3.97744092,3314.9,3314.8,0.72157]
[1762479097847,0.00227003,3315.1,3314.6,3.2078]
[1762479098150,0.00227003,3315.1,3315.0,0.87404]
[1762479098547,0.48886,3315.6,3315.5,0.72276]
[1762479098748,0.48886,3315.6,3315.5,0.2339]
[1762479099241,1.07654099,3316.2,3315.6,0.1512]
[1762479099242,3.2078,3316.2,3315.6,0.1512]
[1762479099442,0.00841594,3316.2,3316.1,0.2339]
[1762479099754,0.00841594,3316.2,3316.1,0.23737749]
[1762479100944,3.2078,3317.4,3316.8,0.3851]
[1762479101244,3.2078,3317.8,3316.8,0.1512]
[1762479101445,0.48874,3316.4,3316.2,0.1512]
[1762479101748,0.4887,3316.7,3316.2,0.1512]
[1762479101955,0.4910138,3316.7,3316.6,0.2339]
[1762479102252,0.0023138,3316.7,3316.6,0.2339]
[1762479102642,0.0023138,3316.7,3316.6,3.4417]
[1762479103352,0.0023138,3316.7,3316.6,3.2078]
[1762479103555,0.0023138,3316.7,3316.6,0.2339]
[1762479104347,3.2078,3317.8,3316.8,0.1512]
[1762479104545,0.48859,3317.5,3317.4,0.1512]
[1762479104742,3.2078,3317.8,3316.2,3.359]
[1762479104949,3.2078,3317.0,3316.8,0.1512]
[1762479105143,0.48856,3317.6,3317.4,0.1512]
[1762479105348,0.4911721,3317.6,3317.4,0.1512]
[1762479105751,0.48859,3317.4,3317.2,0.00452434]
[1762479105951,0.1565,3317.3,3317.2,0.00452434]
[1762479107356,0.48859,3317.4,3317.2,0.00452434]
[1762479107957,0.1565,3317.3,3317.2,0.00452434]
[1762479108156,0.48859,3317.4,3317.2,0.00452434]
[1762479108454,0.1565,3317.3,3317.2,0.00452434]
[1762479109254,0.1565,3317.3,3317.2,2.434e-05]
[1762479111459,0.6451,3317.3,3317.2,2.434e-05]
[1762479114947,0.4886,3317.3,3317.2,2.434e-05]
[1762479115957,0.6406,3317.3,3317.2,2.434e-05]
[1762479116663,0.4886,3317.3,3317.2,2.434e-05]
[1762479118257,0.48858,3317.5,3317.4,0.3851]
[1762479118966,0.0026121,3317.6,3317.4,0.87368]
[1762479119257,0.0026121,3317.6,3317.5,0.2339]
[1762479120362,0.0026121,3317.6,3317.4,0.63978]
[1762479120363,3.69624,3318.4,3318.3,0.2339]
[1762479120660,0.48841,3318.7,3318.6,0.1512]
[1762479121261,3.2078,3318.8,3318.6,0.15424303]
[1762479121465,0.00373916,3318.7,3318.6,0.38814303]